Cogmind - Beta 13 --- EXPLORER MODE // 2024.04.09 @ 13:19:16 Player: Ruben Result: Destroyed by Y-64 Sentinel with Wave Gun Performance ------------- Evolutions (5) 2500 Regions Visited (11) 2200 Robots Destroyed (41) 205 Value Destroyed (1153) 1153 Prototype IDs (8) 160 Alien Tech Used (0) 0 Bonus (682) 682 TOTAL SCORE: 6900 Bonus ------- Entered Garrisons 200 Entered DSFs 500 Friendly Fire -18 Cogmind --------- Core Integrity 0/1000 Matter 288/300 Energy 100/100 System Corruption 1% Temperature Warning (345) Movement Core (50) Location -5/Garrison Parts ------- > --- POWER (3) -------- (None) > --- PROPULSION (6) --- (None) > --- UTILITY (7) ------ Advanced Hacking Suite System Shield > --- WEAPON (2) ------- (None) > --- INVENTORY (5) ---- Light Angular Momentum Engine Carbon-fiber Leg Biomechanical Wings Improved Datajack Peak State ------------ > --- POWER ------------ Micro Nuclear Core Micro Nuclear Core Micro Nuclear Core > --- PROPULSION ------- Cesium-ion Thruster Cesium-ion Thruster Cesium-ion Thruster Cesium-ion Thruster Cesium-ion Thruster Biomechanical Wings > --- UTILITY ---------- Advanced Weight Redist. System Structural Scanner Long-range Sensor Array Advanced Hacking Suite Advanced Hacking Suite Advanced Hacking Suite System Shield > --- WEAPON ----------- Compact HERF Cannon Improved Datajack > --- INVENTORY -------- Micro Nuclear Core Improved Coolant Injector Gauss Cannon Gauss Cannon Improved Datajack [Rating: 78] Favorites ----------- Power Deuterium Engine Engine Deuterium Engine Power Core Light Nuclear Core Reactor Light Antimatter Reactor Propulsion Cesium-ion Thruster Treads Light Treads Leg Carbon-fiber Leg Wheel Wheel Hover Unit Hover Unit Flight Unit Cesium-ion Thruster Utility Structural Scanner Device Structural Scanner Storage Medium Storage Unit Processor Signal Interpreter Hackware System Shield Weapon Assault Cannon Energy Gun Enhanced Quantum Rifle Energy Cannon Compact HERF Cannon Ballistic Gun High-powered Shotgun Ballistic Cannon Assault Cannon Special Melee Weapon Improved Datajack Build | -11 -10 -10 -10 -8 -7 -6 -6 -6 -6 -5 -5 ------- Run | Yrd Mat Min Sub Mat Fac Fac Was Fac DSF Fac Gar Slots Evolved 11 | . 1 . . 4 2 2 . . . 2 . Power 2 | . . . . . 1 . . . . 1 . Propulsion 4 | . . . . 2 1 . . . . 1 . Utility 5 | . 1 . . 2 . 2 . . . . . Weapon . | . . . . . . . . . . . . Parts Attached 83 | 8 5 5 1 26 7 . 1 . 6 10 14 Power 14 | 1 . 1 . 3 2 . . . 2 2 3 Engine 3 | 1 . 1 . 1 . . . . . . . Core 8 | . . . . 2 2 . . . 2 2 . Reactor 3 | . . . . . . . . . . . 3 Propulsion 28 | 3 2 1 1 12 5 . . . . 3 1 Treads 1 | 1 . . . . . . . . . . . Leg 1 | . . . . . . . . . . . 1 Wheel 4 | 2 . 1 1 . . . . . . . . Hover 8 | . 2 . . 5 1 . . . . . . Flight 14 | . . . . 7 4 . . . . 3 . Utility 18 | 2 3 1 . 7 . . . . 4 1 . Device 10 | 1 1 1 . 5 . . . . 1 1 . Storage 1 | . 1 . . . . . . . . . . Processor 2 | 1 1 . . . . . . . . . . Hackware 5 | . . . . 2 . . . . 3 . . Protection . | . . . . . . . . . . . . Artifact . | . . . . . . . . . . . . Weapon 23 | 2 . 2 . 4 . . 1 . . 4 10 Energy Gun 1 | . . . . . . . . . . . 1 Energy Cannon 5 | . . . . . . . . . . 1 4 Ballistic Gun 5 | 2 . 1 . . . . . . . 1 1 Ballistic Cannon 5 | . . 1 . 3 . . 1 . . . . Launcher . | . . . . . . . . . . . . Special Weapon . | . . . . . . . . . . . . Impact Weapon . | . . . . . . . . . . . . Slashing Weapon . | . . . . . . . . . . . . Piercing Weapon . | . . . . . . . . . . . . Special Melee Weapon 7 | . . . . 1 . . . . . 2 4 Unidentified Prototypes 2 | . . . . 1 . . . . . 1 . Parts Lost 30 | . . 2 . 1 . . . . 1 3 23 Power 6 | . . . . . . . . . . . 6 Propulsion 9 | . . 1 . . . . . . . 2 6 Utility 8 | . . . . 1 . . . . 1 1 5 Weapon 7 | . . 1 . . . . . . . . 6 Highest Loss Streak 11 | . . 2 . 1 . . . . 1 3 11 To Critical Strikes . | . . . . . . . . . . . . Average Slot Usage (%) 92 | . 99 98 100 93 99 87 87 87 88 91 59 Engine 6 | . 12 12 12 7 . . . . . . . Core 4 | . . . . . 13 12 12 12 9 15 7 Wheel 6 | . 7 9 15 9 . . . . . . . Hover 8 | . 17 13 8 13 3 . . . . . . Flight 11 | . . . . 8 31 31 31 31 31 26 12 Device 20 | . 20 25 25 19 21 18 18 18 19 15 12 Processor 5 | . 12 12 12 4 . . . . . . . Hackware 8 | . . . . 12 14 12 12 12 14 22 15 Ballistic Gun 6 | . 25 13 12 2 . . . . . 1 1 Ballistic Cannon 8 | . . 10 12 11 7 6 11 12 12 . . Special Melee Weapon 1 | . . . . 2 7 6 . . . 3 2 Naked Turns . | . . . . . . . . . . . . Heaviest Build 45 | 7 17 19 19 24 24 20 26 26 29 33 45 Greatest Support 35 | 20 20 12 30 30 34 25 34 34 34 35 32 Greatest Overweight (x) 14 | 2 1 3 1 1 . . . . . 1 14 Average Overweight (x) . | . . . . . . . . . . . . Largest Inventory Capacity 10 | 5 10 5 5 5 5 5 5 5 5 5 5 Average Capacity 5 | 5 6 5 5 5 5 5 5 5 5 5 5 Most Carried 6 | 5 6 5 5 5 5 5 5 5 5 5 5 Average Carried 4 | 3 3 4 4 4 4 5 4 4 4 4 4 Final Capacity 5 | 5 5 5 5 5 5 5 5 5 5 5 5 Final Carried 5 | 5 4 5 4 5 5 5 5 5 5 5 4 Class Distribution -------------------- 26% | Hacker-Mutant 24% | Scavenger-Skirmisher 21% | Hacker-Sprinter 10% | Wizard-Sprinter 7% | Hacker-Skirmisher 6% | Hacker-Scout Dominant Class ---------------- Hacker-Scout | -10/Materials Scavenger-Skirmisher | -10/Mines Scavenger-Skirmisher | -10/Subcaves Hacker-Mutant | -8/Materials Hacker-Sprinter | -7/Factory Hacker-Sprinter | -6/Factory Hacker-Sprinter | -6/Waste Hacker-Sprinter | -6/Factory Hacker-Sprinter | -6/DSF Wizard-Sprinter | -5/Factory Hacker-Mutant | -5/Garrison Resources | -11 -10 -10 -10 -8 -7 -6 -6 -6 -6 -5 -5 ----------- Run | Yrd Mat Min Sub Mat Fac Fac Was Fac DSF Fac Gar Matter Collected 1533 | 328 54 128 46 332 159 . 201 31 . 192 62 Remotely . | . . . . . . . . . . . . Salvage Created 1430 | 122 16 80 72 299 76 . 227 . . 267 271 Parts 70 | 9 6 8 2 21 6 . . . . 12 6 Haulers Intercepted 2 | . . . . 2 . . . . . . . Recyclers Shooed 1 | 1 . . . . . . . . . . . Parts Field Recycled . | . . . . . . . . . . . . Retrieved Matter . | . . . . . . . . . . . . Parts Self-Destructed . | . . . . . . . . . . . . Prevented . | . . . . . . . . . . . . Kills | -11 -10 -10 -10 -8 -7 -6 -6 -6 -6 -5 -5 ------- Run | Yrd Mat Min Sub Mat Fac Fac Was Fac DSF Fac Gar Combat Hostiles Destroyed 30 | . . 4 2 10 2 . 1 . . 7 4 Guns 6 | . . 2 2 1 . . . . . 1 . Cannons 19 | . . 2 . 9 2 . 1 . . 3 2 AOE 2 | . . . . . . . . . . 2 . Classes Destroyed 16 | 2 1 4 1 5 1 . 1 . . . 1 Worker 2 | . . . . 2 . . . . . . . Builder 2 | . . 2 . . . . . . . . . Tunneler 3 | 3 . . . . . . . . . . . Hauler 2 | . . . . 2 . . . . . . . Recycler 1 | 1 . . . . . . . . . . . Operator 1 | . . . . 1 . . . . . . . Watcher 2 | . 1 . . 1 . . . . . . . Swarmer 10 | . . . . 6 . . . . . 4 . Grunt 9 | . . 1 . 2 . . . . . 3 3 Duelist 1 | . . . . . . . . . . . 1 Sentry 3 | . . . . 2 1 . . . . . . Demolisher 1 | . . 1 . . . . . . . . . Programmer 1 | . . . . . 1 . . . . . . Compactor 1 | . . . . . . . 1 . . . . Subdweller 2 | . . . 2 . . . . . . . . Assembled 2 | . . 2 . . . . . . . . . Best Kill Streak 7 | 2 1 4 2 3 1 . 1 . . 7 3 Combat Bots Only 7 | . . 4 2 2 1 . 1 . . 7 3 Max Kills in Single Turn 2 | 1 1 1 1 2 1 . 1 . . 2 1 Gunslinging . | . . . . . . . . . . . . Exploded 2 | . . . . . . . . . . 2 . Melee . | . . . . . . . . . . . . Uniques/NPCs Destroyed . | . . . . . . . . . . . . Combat | -11 -10 -10 -10 -8 -7 -6 -6 -6 -6 -5 -5 -------- Run | Yrd Mat Min Sub Mat Fac Fac Was Fac DSF Fac Gar Hostile Shots Fired 449 | . 1 44 4 38 29 . . 9 13 34 277 Missed 144 | . 1 10 1 14 20 . . 7 9 9 73 Damage Taken 3375 | . . 453 50 150 46 . . 6 53 350 2267 Core 1168 | . . 139 . 26 3 . . . . 44 956 Absorbed by Shields 24 | . . . . . . . . . . . 24 Ignored by Resistances 2029 | . . 276 29 100 33 . . 4 32 208 1347 Regen/Repaired (Parts) 99 | . . . . 40 . . . 59 . . . Core Remaining (%) 87 | 100 . . 44 95 99 . . . 100 . . Volleys Fired 122 | 12 1 10 4 30 8 3 19 . . 15 20 Largest 2 | 2 2 2 2 2 1 1 2 . . 2 2 Hottest 185 | 40 40 69 69 88 48 48 96 . . 127 185 Shots Fired 200 | 24 2 20 8 54 8 3 34 . . 20 27 Gun 75 | 24 2 11 4 10 . . . . . 13 11 Cannon 125 | . . 9 4 44 8 3 34 . . 7 16 Launcher . | . . . . . . . . . . . . Special . | . . . . . . . . . . . . Kinetic 175 | 24 2 20 8 54 8 3 34 . . 13 9 Thermal 9 | . . . . . . . . . . . 9 Explosive . | . . . . . . . . . . . . Electromagnetic 16 | . . . . . . . . . . 7 9 Robot Hit Streak 17 | 15 5 7 7 15 10 6 13 . . 15 17 Robot Miss Streak 3 | 1 . 3 1 2 1 . 1 . . 1 1 Penetration Max 1 | . . . . . . . . . . 1 1 Secondary Targets . | . . . . . . . . . . . . Shots Hit Robots 170 | 19 1 12 7 48 8 4 31 . . 16 24 Core Hits 58 | 7 1 8 2 20 3 . 4 . . 7 6 Critical Kills . | . . . . . . . . . . . . Critical Parts Destroyed . | . . . . . . . . . . . . Critical Strikes 7 | . . . . 2 1 . 3 . . . 1 Blast 6 | . . . . 2 1 . 3 . . . . Corrupt 1 | . . . . . . . . . . . 1 Melee Attacks 11 | . . . . 7 2 1 . . . . 1 Impact . | . . . . . . . . . . . . Slashing . | . . . . . . . . . . . . Piercing . | . . . . . . . . . . . . Sneak Attacks 8 | . . . . 6 2 . . . . . . Combat Hostiles . | . . . . . . . . . . . . Follow-up Attacks . | . . . . . . . . . . . . Damage Inflicted 4518 | 213 12 248 178 1101 179 87 881 . . 658 961 Guns 1301 | 213 12 155 105 211 . . . . . 226 379 Cannons 3046 | . . 91 73 890 179 87 881 . . 288 557 Explosions 144 | . . . . . . . . . . 144 . Melee . | . . . . . . . . . . . . Ramming 27 | . . 2 . . . . . . . . 25 Kinetic 3442 | 213 12 246 178 1101 179 87 881 . . 226 319 Thermal 419 | . . . . . . . . . . 144 275 Explosive . | . . . . . . . . . . . . Electromagnetic 630 | . . . . . . . . . . 288 342 Impact . | . . . . . . . . . . . . Slashing . | . . . . . . . . . . . . Piercing . | . . . . . . . . . . . . Highest Corruption 1 | . . . . . . . . . . . 1 Average Corruption 1 | . . . . . . . . . . . 1 Corruption Purged . | . . . . . . . . . . . . Corruption Blocked . | . . . . . . . . . . . . Overload Shots . | . . . . . . . . . . . . Overflow Damage 79 | . . 1 . 6 . 9 . . . 63 . Projectiles 77 | . . 1 . 6 . 9 . . . 61 . Explosions 2 | . . . . . . . . . . 2 . Melee . | . . . . . . . . . . . . Knockbacks 12 | . . 1 1 6 . 3 . . . . 1 Impact 1 | . . . . . . . . . . . 1 Kinetic 10 | . . 1 1 5 . 3 . . . . . Secondary 1 | . . . . 1 . . . . . . . Self-Inflicted Damage 40 | . . 1 . . . . . . . 28 11 Shots 1 | . . . . . . . . . . 1 . Rammed 7 | . . 1 . . . . . . . . 6 Targets Rammed 7 | . . 1 . . . . . . . . 6 Kicked . | . . . . . . . . . . . . Crushed . | . . . . . . . . . . . . Highest Temperature 497 | . . 105 . 223 323 . 221 . . 497 426 Average Temperature 121 | . . 37 . 35 143 . 122 . . 139 149 Received Heat Transfer 1527 | . . 72 15 63 24 . . . 6 147 1200 Effects 14 | . . . . . . . . . . 12 2 Shutdowns 10 | . . . . . . . . . . 9 1 Interference 2 | . . . . . . . . . . 1 1 Short Circuit 1 | . . . . . . . . . . 1 . Damage (minor) 1 | . . . . . . . . . . 1 . Siege Activations . | . . . . . . . . . . . . Robots Corrupted 3 | . . . . . . . . . . 1 2 Combat Hostiles 3 | . . . . . . . . . . 1 2 Parts Fried 4 | . . . . . . . . . . 2 2 Impact Corruptions . | . . . . . . . . . . . . Robots Melted . | . . . . . . . . . . . . Combat Hostiles . | . . . . . . . . . . . . Parts Melted . | . . . . . . . . . . . . Heat Transferred 496 | . . . . . . . . . . 200 296 Parts Sabotaged . | . . . . . . . . . . . . Parts Stolen . | . . . . . . . . . . . . Parts Stripped . | . . . . . . . . . . . . Power Chain Reactions 1 | . . . . . . . . . . 1 . Alert | -11 -10 -10 -10 -8 -7 -6 -6 -6 -6 -5 -5 ------- Run | Yrd Mat Min Sub Mat Fac Fac Was Fac DSF Fac Gar Peak Influence 254 | 20 42 66 . 254 131 61 16 44 51 178 200 Initial 95 | . 9 11 . . 49 46 14 8 31 19 95 Average 60 | 10 30 27 . 94 84 52 5 15 41 56 127 Maximum Alert Level 1 | . . . . 1 . . . . . . 1 Low Security (%) 98 | 100 100 100 . 95 100 100 100 100 100 100 99 Level 1 1 | . . . . 4 . . . . . . . Level 2 . | . . . . . . . . . . . . Level 3 . | . . . . . . . . . . . . Level 4 . | . . . . . . . . . . . . Level 5 . | . . . . . . . . . . . . High Security . | . . . . . . . . . . . . Max Security . | . . . . . . . . . . . . Squads Dispatched 4 | . . 1 . 1 1 1 . . . . . Investigation 1 | . . 1 . . . . . . . . . Extermination 1 | . . . . . 1 . . . . . . Reinforcement 2 | . . . . 1 . 1 . . . . . Assault . | . . . . . . . . . . . . Garrison . | . . . . . . . . . . . . Intercept . | . . . . . . . . . . . . Searches Triggered . | . . . . . . . . . . . . Construction Impeded . | . . . . . . . . . . . . Haulers Reinforced . | . . . . . . . . . . . . Active Scanning Responses . | . . . . . . . . . . . . Cargo Convoy Interrupts . | . . . . . . . . . . . . Stealth | -11 -10 -10 -10 -8 -7 -6 -6 -6 -6 -5 -5 --------- Run | Yrd Mat Min Sub Mat Fac Fac Was Fac DSF Fac Gar Distress Signals . | . . . . . . . . . . . . Communications Jammed . | . . . . . . . . . . . . Distress Signals . | . . . . . . . . . . . . Times Spotted 74 | . 3 15 7 13 2 1 5 1 2 7 18 Peak Tracking Total 11 | . 2 9 6 3 1 2 4 1 2 7 11 Tactical Retreats 4 | . . . . 1 . . . . 1 . 2 Traps | -11 -10 -10 -10 -8 -7 -6 -6 -6 -6 -5 -5 ------- Run | Yrd Mat Min Sub Mat Fac Fac Was Fac DSF Fac Gar Traps Triggered 4 | . . . . 1 . 1 . . 1 1 . Indirectly . | . . . . . . . . . . . . Trap Hack Attempts 24 | . . . . . . . . . . . 24 Triggered 1 | . . . . . . . . . . . 1 Disarmed 4 | . 4 . . . . . . . . . . Reprogrammed 8 | . . . . . . . . . . . 8 Reused 2 | . . . . . . . . . . . 2 Traps Extracted . | . . . . . . . . . . . . Installed . | . . . . . . . . . . . . Triggered 2 | . . . . . . . . . . . 2 Machines | -11 -10 -10 -10 -8 -7 -6 -6 -6 -6 -5 -5 ---------- Run | Yrd Mat Min Sub Mat Fac Fac Was Fac DSF Fac Gar Machines Disabled 1 | . . . . 1 . . . . . . . Max in Single Turn 1 | . . . . 1 . . . . . . . Machines Repaired . | . . . . . . . . . . . . Machines Dismantled . | . . . . . . . . . . . . Machines Sabotaged . | . . . . . . . . . . . . Overloaded Fab Kills . | . . . . . . . . . . . . Hacking | -11 -10 -10 -10 -8 -7 -6 -6 -6 -6 -5 -5 --------- Run | Yrd Mat Min Sub Mat Fac Fac Was Fac DSF Fac Gar Machines Accessed 24 | . 4 . 1 10 3 . . 2 . 3 1 Terminals 15 | . 4 . . 7 1 . . 1 . 1 1 Fabricators 1 | . . . . . 1 . . . . . . Repair Stations 2 | . . . . 1 . . . 1 . . . Recycling Units 2 | . . . . 1 1 . . . . . . Scanalyzers 2 | . . . . 1 . . . . . 1 . Garrison Access 1 | . . . . . . . . . . 1 . Total Hacks 80 | . 19 . 3 37 10 . . 3 . 6 2 Successful 70 | . 16 . 3 30 10 . . 3 . 6 2 Failed 10 | . 3 . . 7 . . . . . . . Catastrophic . | . . . . . . . . . . . . Database Lockouts . | . . . . . . . . . . . . Manual 13 | . 3 . . 5 3 . . . . 1 1 Terminals 53 | . 19 . . 28 2 . . 1 . 1 2 Fabricators 4 | . . . . . 4 . . . . . . Repair Stations 6 | . . . . 4 . . . 2 . . . Recycling Units 6 | . . . . 2 4 . . . . . . Scanalyzers 7 | . . . . 3 . . . . . 4 . Garrison Access 1 | . . . . . . . . . . 1 . Terminal Hacks 47 | . 16 . 3 22 2 . . 1 . 1 2 Record 15 | . 7 . 3 5 . . . . . . . Robot Analysis 1 | . 1 . . . . . . . . . . Prototype ID Bank 3 | . 1 . . 2 . . . . . . . Open DSF 4 | . . . . . 2 . . 1 . 1 . Level Access Points 1 | . . . . 1 . . . . . . . Emergency Access Points 2 | . 1 . . 1 . . . . . . . Alert Level 2 | . . . . 2 . . . . . . . Locate Traps 7 | . 2 . . 5 . . . . . . . Disarm Traps 2 | . 2 . . . . . . . . . . Reprogram Traps 1 | . . . . . . . . . . . 1 Maintenance Status 1 | . . . . 1 . . . . . . . Recall Investigation 1 | . . . . 1 . . . . . . . Zone Layout 6 | . 2 . . 4 . . . . . . . Garrison Registry 1 | . . . . . . . . . . . 1 Fabricator Hacks 4 | . . . . . 4 . . . . . . Load Schematic 2 | . . . . . 2 . . . . . . Build 2 | . . . . . 2 . . . . . . Repair Station Hacks 6 | . . . . 4 . . . 2 . . . Scan Component 3 | . . . . 2 . . . 1 . . . Repair 3 | . . . . 2 . . . 1 . . . Recycling Unit Hacks 6 | . . . . 2 4 . . . . . . Process 1 | . . . . . 1 . . . . . . Report Inventory 3 | . . . . 1 2 . . . . . . Retrieve Matter 1 | . . . . . 1 . . . . . . Retrieve Components 1 | . . . . 1 . . . . . . . Scanalyzer 6 | . . . . 2 . . . . . 4 . Insert Component 3 | . . . . 1 . . . . . 2 . Analyze 3 | . . . . 1 . . . . . 2 . Garrison Access Hacks 1 | . . . . . . . . . . 1 . Unlock Access 1 | . . . . . . . . . . 1 . Unauthorized Hacks . | . . . . . . . . . . . . Terminals . | . . . . . . . . . . . . Fabricators . | . . . . . . . . . . . . Repair Stations . | . . . . . . . . . . . . Recycling Units . | . . . . . . . . . . . . Scanalyzers . | . . . . . . . . . . . . Garrison Access . | . . . . . . . . . . . . Data Cores Recovered 1 | . . . . 1 . . . . . . . Used . | . . . . . . . . . . . . Hacking Detections 11 | . 2 . . 7 1 . . 1 . . . Full Trace Events . | . . . . . . . . . . . . Feedback Events . | . . . . . . . . . . . . Feedback Blocked . | . . . . . . . . . . . . Robot Schematics Acquired . | . . . . . . . . . . . . Robots Built . | . . . . . . . . . . . . Authchips . | . . . . . . . . . . . . Time . | . . . . . . . . . . . . Total Robot Build Rating . | . . . . . . . . . . . . Part Schematics Acquired 3 | . . . . 1 . . . . . 2 . Parts Built 4 | . . . . . 4 . . . . . . Authchips . | . . . . . . . . . . . . Time 146 | . . . . . 146 . . . . . . Total Part Build Rating 12 | . . . . . 12 . . . . . . Parts Repaired 3 | . . . . 2 . . . 1 . . . Time 110 | . . . . 76 . . . 34 . . . Parts Recycled . | . . . . . . . . . . . . Recycled Matter 226 | . . . . . 226 . . . . . . Retrieved Matter 226 | . . . . . 226 . . . . . . Retrieved Components 9 | . . . . 9 . . . . . . . Parts Scanalyzed 3 | . . . . 1 . . . . . 2 . Part Schematics Acquired 3 | . . . . 1 . . . . . 2 . Parts Damaged 1 | . . . . . . . . . . 1 . Bothacking | -11 -10 -10 -10 -8 -7 -6 -6 -6 -6 -5 -5 ------------ Run | Yrd Mat Min Sub Mat Fac Fac Was Fac DSF Fac Gar Used RIF Installer . | . . . . . . . . . . . . Robots Hacked 6 | . . . . 3 1 1 . . . . 1 Non-combat 5 | . . . . 3 1 1 . . . . . Combat 1 | . . . . . . . . . . . 1 Robot Hacks Applied 10 | . . . . 6 2 1 . . . . 1 parse_system 6 | . . . . 3 1 1 . . . . 1 no_distress 3 | . . . . 2 1 . . . . . . find_station 1 | . . . . 1 . . . . . . . Relay Couplers Released . | . . . . . . . . . . . . Fabnet Peak Effective % . | . . . . . . . . . . . . Robots Rewired . | . . . . . . . . . . . . Allies Hacked . | . . . . . . . . . . . . Hacks Repelled . | . . . . . . . . . . . . Allies | -11 -10 -10 -10 -8 -7 -6 -6 -6 -6 -5 -5 -------- Run | Yrd Mat Min Sub Mat Fac Fac Was Fac DSF Fac Gar Total Allies 1 | . . . . . . . 1 . . . . Largest Group 1 | . . . . . . . 1 . . . . Highest-Rated Group 31 | . . . . . . . 31 . . . . Highest-Rated Ally 31 | . . . . . . . 31 . . . . Total Orders . | . . . . . . . . . . . . Ally Attacks 5 | . . . . . . . 5 . . . . Total Damage 86 | . . . . . . . 86 . . . . Kills . | . . . . . . . . . . . . Allies Corrupted . | . . . . . . . . . . . . Allies Melted . | . . . . . . . . . . . . Intel | -11 -10 -10 -10 -8 -7 -6 -6 -6 -6 -5 -5 ------- Run | Yrd Mat Min Sub Mat Fac Fac Was Fac DSF Fac Gar Robot Analysis Total 1 | . 1 . . . . . . . . . . Derelict Logs Recovered 1 | . . . 1 . . . . . . . . Drone Launches . | . . . . . . . . . . . . Drone Recoveries . | . . . . . . . . . . . . Exploration | -11 -10 -10 -10 -8 -7 -6 -6 -6 -6 -5 -5 ------------- Run | Yrd Mat Min Sub Mat Fac Fac Was Fac DSF Fac Gar Turns Passed 2800 | 111 156 725 177 641 320 29 99 59 47 203 233 Spaces Moved 3613 | 55 219 732 167 569 466 95 179 103 128 564 336 Core 77 | 23 . . . . . . . . . . 54 Treads . | . . . . . . . . . . . . Legs 2 | . . . . . . . . . . . 2 Wheels 891 | 32 44 571 167 77 . . . . . . . Hover 755 | . 175 161 . 419 . . . . . . . Flight 1888 | . . . . 73 466 95 179 103 128 564 280 Fastest Speed 23 | 50 56 56 95 28 23 23 23 23 23 23 23 Average Speed 53 | 95 61 92 95 71 25 23 23 23 25 25 35 Slowest Speed 750 | 150 125 240 95 116 28 23 23 23 26 109 750 Overloaded Moves . | . . . . . . . . . . . . Propulsion Burnouts . | . . . . . . . . . . . . Robots Hopped 12 | . . . . . 10 1 . . . 1 . Cave-ins Triggered . | . . . . . . . . . . . . Exploration Rate (%) 35 | 3 42 87 9 51 9 3 71 3 92 9 43 Regions Visited 11 Branch Regions 2 Pre-discovered Areas 1 | . . . 1 . . . . . . . . Known Exits Taken 8 | 1 1 1 1 1 1 . . 1 . 1 . Unknown Exits Taken . | . . . . . . . . . . . . Scrap Searched . | . . . . . . . . . . . . Spaces Dug . | . . . . . . . . . . . . Terrain Destroyed 15 | . . 3 1 3 3 . 1 . . 4 . Melee . | . . . . . . . . . . . . Projectile 13 | . . 3 1 3 3 . 1 . . 2 . AOE 2 | . . . . . . . . . . 2 . Terrain Rammed . | . . . . . . . . . . . . Walls Destroyed . | . . . . . . . . . . . . Machines Disabled . | . . . . . . . . . . . . Actions | -11 -10 -10 -10 -8 -7 -6 -6 -6 -6 -5 -5 --------- Run | Yrd Mat Min Sub Mat Fac Fac Was Fac DSF Fac Gar Total 4271 | 91 240 763 179 750 648 98 202 137 142 601 420 Wait 325 | 5 4 11 . 89 167 . . 34 . 2 13 Move 3574 | 54 218 731 166 568 445 93 178 102 127 561 331 Hop 12 | . . . . . 10 1 . . . 1 . Pick Up 58 | 12 6 2 3 11 5 . 2 1 4 6 6 Fast Attach 27 | . . 4 1 13 1 . . . 4 3 1 Attach 33 | 7 4 1 . 8 2 . . . 2 2 7 Detach 5 | . 1 . . 3 . . . . . 1 . Swap 23 | 1 1 . . 5 4 . 1 . . 5 6 Drop 45 | . 5 3 5 16 4 . 2 . 5 5 . Fire 122 | 12 1 10 4 30 8 3 19 . . 15 20 Melee 11 | . . . . 7 2 1 . . . . 1 Ram 7 | . . 1 . . . . . . . . 6 Kick . | . . . . . . . . . . . . Crush . | . . . . . . . . . . . . Escape Stasis 5 | . . . . . . . . . . . 5 Rewire . | . . . . . . . . . . . . Trap 24 | . . . . . . . . . . . 24 Miscellaneous . | . . . . . . . . . . . . Route ------- -11/Scrapyard -10/Materials (discovered 2 exits: *Min x2) -10/Mines (discovered 3 exits: *Mat x2 / *Sub) -10/Subcaves -8/Materials (discovered 3 exits: *Fac x3) -7/Factory (discovered 3 exits: *Fac x2 / *Low) -6/Factory -6/Waste -6/Factory -6/DSF -5/Factory -5/Garrison (discovered 3 exits: *Fac x3) History --------- Turn | Location | Event 2 | -11/Scrapyard | Met Revision 17 21 | -11/Scrapyard | Identified exit to Materials 21 | -11/Scrapyard | Discovered exit to Materials (range 16) 112 | -11/Scrapyard | Entered Materials 112 | -10/Materials | Evolved 1 slot: Utility x1 180 | -10/Materials | Identified exit to Mines 180 | -10/Materials | Discovered exit to Mines (range 14) 239 | -10/Materials | Discovered exit to Mines (range 13) 268 | -10/Materials | Entered Mines 319 | -10/Mines | Assembled infested the area 343 | -10/Mines | Met a Derelict shopkeep closing up shop 371 | -10/Mines | Core integrity fell below 50% 589 | -10/Mines | Identified exit to Subcaves 589 | -10/Mines | Discovered exit to Subcaves (range 16) 665 | -10/Mines | Identified exit to Materials 665 | -10/Mines | Discovered exit to Materials (range 13) 735 | -10/Mines | Build established: Scavenger-Skirmisher 791 | -10/Mines | YI-UF0 nonchalantly dropped a Grenade Launcher on the ground 910 | -10/Mines | Discovered exit to Materials (range 10) 993 | -10/Mines | Entered Subcaves 997 | -10/Subcaves | Learned location of Mines (-10) 1043 | -10/Subcaves | Visited Clippyterm 1046 | -10/Subcaves | Learned Factory trap positions 1046 | -10/Subcaves | Learned Research security intel 1114 | -10/Subcaves | Shifting Twisted Machinery released Sub. Monowheel 1115 | -10/Subcaves | Shifting Twisted Machinery released Barrage Gun 1116 | -10/Subcaves | Ambushed by swarm of Subdwellers 1120 | -10/Subcaves | Identified exit to Materials 1120 | -10/Subcaves | Discovered exit to Materials (range 5) 1170 | -10/Subcaves | Entered Materials 1170 | -8/Materials | Evolved 4 slots: Propulsion x2, Utility x2 1321 | -8/Materials | Identified exit to Factory 1321 | -8/Materials | Discovered exit to Factory (range 17) 1451 | -8/Materials | Repaired Imp. Terrain Scanner 1490 | -8/Materials | Repaired Deuterium Engine 1546 | -8/Materials | Build established: Hacker-Mutant 1811 | -8/Materials | Entered Factory 1811 | -7/Factory | Evolved 2 slots: Power x1, Propulsion x1 1812 | -7/Factory | Loaded intel: 84 trap records 1829 | -7/Factory | Identified exit to Lower Caves 1829 | -7/Factory | Discovered exit to Lower Caves (range 14) 1857 | -7/Factory | Identified exit to DSF 1859 | -7/Factory | Identified exit to Factory 1859 | -7/Factory | Discovered exit to Factory (range 7) 1878 | -7/Factory | Discovered exit to Factory (range 10) 1959 | -7/Factory | Fabricated Cesium-ion Thruster (x2) 2029 | -7/Factory | Build established: Hacker-Sprinter 2036 | -7/Factory | Fabricated Cesium-ion Thruster (x2) 2131 | -7/Factory | Entered another Factory area 2131 | -6/Factory | Evolved 2 slots: Utility x2 2160 | -6/Factory | Sucked down chute 2160 | -6/Factory | Entered Waste 2161 | -6/Waste | Met a frightened Derelict 2164 | -6/Waste | Spotted C-40 Crusher 2191 | -6/Waste | Destroyed C-40 Crusher 2198 | -6/Waste | Spotted C-40 Crusher 2210 | -6/Waste | Spotted C-40 Crusher 2249 | -6/Waste | Spotted C-40 Crusher 2252 | -6/Waste | Spotted C-40 Crusher 2255 | -6/Waste | Spotted C-40 Crusher 2255 | -6/Waste | Identified exit to Factory 2255 | -6/Waste | Discovered exit to Factory (range 16) 2259 | -6/Waste | Entered Factory 2302 | -6/Factory | Repaired Com. HERF Cannon 2318 | -6/Factory | Identified exit to DSF 2318 | -6/Factory | Entered DSF 2336 | -6/DSF | Identified exit to Factory 2336 | -6/DSF | Discovered exit to Factory (range 15) 2342 | -6/DSF | Additional patrols routed to DSF 2365 | -6/DSF | Entered Factory 2365 | -5/Factory | Evolved 2 slots: Power x1, Propulsion x1 2568 | -5/Factory | Destroyed 7 combat bots 2568 | -5/Factory | Identified exit to Garrison 2568 | -5/Factory | Entered Garrison 2570 | -5/Garrison | Lost 3 parts (2n1u) 2573 | -5/Garrison | Identified exit to Factory 2573 | -5/Garrison | Discovered exit to Factory (range 63) 2573 | -5/Garrison | Discovered exit to Factory (range 76) 2573 | -5/Garrison | Discovered exit to Factory (range 51) 2598 | -5/Garrison | Triggered checkpoint 2628 | -5/Garrison | Triggered checkpoint 2634 | -5/Garrison | Triggered checkpoint 2653 | -5/Garrison | Attempted to access garrison exit controls, blocked by remote lockdown 2714 | -5/Garrison | Lost 11 parts (2p5n3u1w) 2732 | -5/Garrison | Core integrity fell below 50% 2755 | -5/Garrison | Lost 4 parts (2p2w) 2797 | -5/Garrison | Core integrity fell below 20% 2801 | -5/Garrison | Destroyed by Y-64 Sentinel with Wave Gun Last Messages --------------- 02790_ Critical hit (Burn: +37). 02791_ Slug penetrates Y-64 Sentinel. 02791_ X-77 Beamer suffers critical hit (Destroy). 02791_ Slug penetrates Reinforced Barrier. 02791_ Critical hit (Burn: +37). 02791_ Penetrated by Slug. 02792_ Lgt. Quantum Reactor destroyed. 02794_ Enh. Nova Cannon destroyed. 02795_ Overheating: System interference. 02795_ Enh. Quantum Rifle temporarily disabled. 02795_ Critical hit (Burn: +37). 02796_ Lgt. Quantum Reactor destroyed. 02798_ Enh. Quantum Rifle destroyed. 02798_ Slug penetrates Reinforced Barrier. 02798_ Acquired Carbon-fiber Leg. 02799_ Slug penetrates Reinforced Barrier. 02799_ Slammed into G-50 Soldier. 02799_ G-50 Soldier knocked back. 02800_ Slammed into G-50 Soldier. Map ----- +----------------------------------------------------+ | | | | | | | ?????????????????????????????????????????????????? | | ?????????????????????????????????????????????????? | | ?????????????????????????????????????????????????? | | ?????????????????????????????????????????????????? | | ?????????????????????????????????????????????????? | | ?????????????????????????????????????????????????? | | ?????????????????????????????????????????????????? | | ?????????????????????????????????????????????????? | | ?????????????????????????????????????????????????? | | ?????????????????????????????????????????????????? | | ????????????????????????????#######??????????????? | | ????????????????????????????# #??????????????? | | ????????????????????????????# < #??????????????? | | ????????????????????????????# #??????????????? | | ????????????????????????????### #??????????????? | | ??????????????????????????????# #??????????????? | | ??????????????????????????????# #??????????????? | | ??????????????????????????????# #??????????????? | | ??????????????????????????????# #??????????????? | | ??????????????????############# #??????????????? | | ??????????????????#""" " """"## #??????????????? | | ??????????????????#"" x! x"""## #??????????????? | | ??????????????????#"" Y% @g""## #??????????????? | | ??????????????????#"]h#!g# *"## #??????????????? | | ??????????????????#"= #g # ="## % #??????????????? | | ??????????????????#"* # # ["## %!#??????????????? | | ??????????????????#"! #g # ="## #??????????????? | | ??????????????????#"= # # ="## % #??????????????? | | ??????????????????#"= # # *"## #??????????????? | | ??????????????????#"" # # ""## #??????????????? | | ??????????????????### + + #### #??????????????? | | ????????????????????###^ ###??# #??????????????? | | ??????????????????????# #????# #??????????????? | | ???????????????########+"###### ############???? | | ???????????????# ^ + #???? | | ???????????????# ^^ + #???? | | ???????????????### ##### ## #### #### #???? | | ????????????????#"""""#??# ## #??# #??# #???# | | ????????????????#######??##+### #??# #??# #???# | | ??????????????????????????# #?# #??# #??# #???# | | ??????????????????????????# #?# #??# #??# ##### | | ??????????????????#######?# #?# #??# #??# ## | | ??????????????????#"""""### ### ####+####+"## | | ??????????????????## + | | ???????????????????############ | | ??????????????????????????????# | | ??????????????????????????????############ ## | +----------------------------------------------------+ Best States ------------- Heat Dissipation 40 Coolant Potential 80 Energy Generation 45 Energy Capacity 315 Matter Stores 300 Matter Capacity 300 Sight Range 16 Robot Scan Range 18 Terrain Scan Range 16 Terrain Scan Density 10 Additional Mass Support 9 Resistance: KI 35 Resistance: TH 35 Resistance: EX 35 Resistance: EM 35 Resistance: I 35 Resistance: S 35 Resistance: P 35 Evasion (%) 72 Targeting Accuracy 5 Offensive Hacking 62 Defensive Hacking 10 Item Schematics ----------------- Cesium-ion Thruster | -8/Materials | Scanalyzed Mic. Nuclear Core | -5/Factory | Scanalyzed Biomechanical Wings | -5/Factory | Scanalyzed Robot Schematics ------------------ None Fabricated ------------ Cesium-ion Thruster | x2 | -7/Factory Cesium-ion Thruster | x2 | -7/Factory Alien Tech Used ----------------- None Achievements -------------- Can't Catch Me Deadly Force Hehehe Challenges ------------ None Game ------ Seed SpectralTargetingBlade Manual? 0 Play Time 01:32:05 Cumulative 24.1 hours Start 2024.04.09 @ 11:38:27 End 2024.04.09 @ 13:19:16 Sessions 1 Manual Loads 0 Difficulty Explorer Special Mode None Game No. 42 Rogue 39 Adventurer 0 Explorer 3 Win Type - Total 0 Types 0/0/0/0/0/0/0/0/0 Lore% 17 Gallery% 28 Achievement% 21 Wizard Run 0 Options --------- Layout 1 ASCII 0 Keyboard 0 Movement Arrows Keybinds 0 Fullscreen 1 Font 24/Smallcaps Map View 50x35 Zoom Use 0% Tactical HUD 1 Map Filters NONE Filters NONE Steam 1 RUN: 1faf0e79-bfc7-4f46-80e2-e8d3f24b55ef